Workbook

Sheet Title Page
C12: Solar-Powered Lighting System Worksheet
C13: Authors: Professor Thomas Jenkins, ETSE
C14: Gabriel Bolivar-Mendoza | L14: =TODAY() -> 2014-08-26
C15: Copyright © NMSU 2013
C16: Acknowledgements:
C17: The authors wish to express extreme gratitude for the assistance of the following:
C18: College of Engineering (COE) and Engineering NM: http://engr.nmsu.edu/index.shtml
C19: NMSU Cooperative Extension Service: http://extension.nmsu.edu/
C20: New Mexico Space Grant Consortium (NMSGC): http://www.nmspacegrant.com/
C21: Department of Engineering Technology and Surveying Engineering (ETSE): http://et.nmsu.edu/
C23: Disclaimer: This document is only intended to provide an education tool and should not be used beyond this purpose.
C24: The authors tried to use good engineering analysis, but all situations are different and the user should consult a professional in all cases.
C25: See solar lighting video at: | F25: http://www.youtube.com/watch?v=AzAiqkLL9z4&list=PL89870B418A514D27&index=20
C26: See related energy videos at: | F26: http://www.youtube.com/playlist?list=PL89870B418A514D27
A49: http://www.youtube.com/watch?v=AzAiqkLL9z4&list=PL89870B418A514D27&index=20
A50: http://www.youtube.com/playlist?list=PL89870B418A514D27

Sheet Solar Resource
A1: Solar Resource: The average amount of sunlight in your area | AC1: Invalid Latitude!! | AI1: Latitude | AJ1: Y/N | AK1: Order
A2: Step 1: Select your state (NM, AZ, CO, UT, NV) using the drop-down menu. | M2: Select your | AI2: 31 | AJ2: =IF(OR($M$4="New Mexico",$M$4="Arizona"),1.012,0.012) -> 1.012 | AK2: =INDEX($AI$2:$AI$13,MATCH(LARGE($AJ$2:$AJ$13,1),$AJ$2:$AJ$13,0)) -> 31
A3: Next: Enter the "Latitude" of the location where you plan to install your solar lighting system using the state's reference map below and the drop-down menu. | I3: Enter your Latitude | K3: 35 | M3: State: | AC3: New Mexico | AD3: Winter | AE3: Latitude | AF3: =IF(#REF!="Summer",4,3) ->  | AI3: 32 | AJ3: =IF(OR($M$4="New Mexico",$M$4="Arizona"),1.011,0.011) -> 1.011 | AK3: =INDEX($AI$2:$AI$13,MATCH(LARGE($AJ$2:$AJ$13,2),$AJ$2:$AJ$13,0)) -> 32
M4: New Mexico | AC4: Arizona | AD4: Summer | AE4: 1-Axis Tracker | AF4: =IF(#REF!="Summer",6,5) ->  | AI4: 33 | AJ4: =IF(OR($M$4="New Mexico",$M$4="Arizona"),1.01,0.01) -> 1.01 | AK4: =INDEX($AI$2:$AI$13,MATCH(LARGE($AJ$2:$AJ$13,3),$AJ$2:$AJ$13,0)) -> 33
A5: Step 2: Once Total Daily Insolation is calculated, move on to the next sheet titled Lights. | I5: Total Daily Insolation | K5: =IFERROR(IF(M4="New Mexico",INDEX(AD26:AI31,MATCH(K3,AC26:AC31,0),AF8),IF(M4="Arizona",INDEX(AD62:AI68,MATCH(K3,AC62:AC68,0),AF8),IF(M4="Colorado",INDEX(AD91:AI95,MATCH(K3,AC91:AC95,0),AF8),IF(M4="Utah",INDEX(AD126:AI131,MATCH(K3,AC126:AC131,0),AF8),IF(M4="Nevada",INDEX(AD155:AI162,MATCH(K3,AC155:AC162,0),AF8)))))),0) -> 5 | L5: kWh/day | AC5: Colorado | AD5: All Year | AE5: +/- 15° | AF5: =IF(#REF!="Summer",2,1) ->  | AI5: 34 | AJ5: =IF(OR($M$4="New Mexico",$M$4="Arizona"),1.009,0.009) -> 1.009 | AK5: =INDEX($AI$2:$AI$13,MATCH(LARGE($AJ$2:$AJ$13,4),$AJ$2:$AJ$13,0)) -> 34
AC6: Utah | AI6: 35 | AJ6: =IF(OR($M$4="New Mexico",$M$4="Arizona",$M$4="Nevada"),1.008,0.008) -> 1.008 | AK6: =INDEX($AI$2:$AI$13,MATCH(LARGE($AJ$2:$AJ$13,5),$AJ$2:$AJ$13,0)) -> 35
B7: NEW MEXICO | AC7: Nevada | AI7: 36 | AJ7: =IF(OR($M$4="New Mexico",$M$4="Arizona",$M$4="Nevada"),1.007,0.007) -> 1.007 | AK7: =INDEX($AI$2:$AI$13,MATCH(LARGE($AJ$2:$AJ$13,6),$AJ$2:$AJ$13,0)) -> 36
AD8: =IF(#REF!="Summer",1,0) ->  | AE8: =IF(#REF!="Latitude",3,IF(#REF!="1-Axis Tracker",5,3)) ->  | AF8: 3 | AI8: 37 | AJ8: =IF(OR($M$4="Utah",$M$4="Colorado",$M$4="Nevada"),1.006,0.006) -> 0.006 | AK8: =INDEX($AI$2:$AI$13,MATCH(LARGE($AJ$2:$AJ$13,7),$AJ$2:$AJ$13,0)) -> 37
A9: 36 | B9: 36 | J9: 36 | AI9: 38 | AJ9: =IF(OR($M$4="Utah",$M$4="Colorado",$M$4="Nevada"),1.005,0.005) -> 0.005 | AK9: =INDEX($AI$2:$AI$13,MATCH(LARGE($AJ$2:$AJ$13,8),$AJ$2:$AJ$13,0)) -> 38
AI10: 39 | AJ10: =IF(OR($M$4="Utah",$M$4="Colorado",$M$4="Nevada"),1.004,0.004) -> 0.004 | AK10: =INDEX($AI$2:$AI$13,MATCH(LARGE($AJ$2:$AJ$13,9),$AJ$2:$AJ$13,0)) -> 39
AI11: 40 | AJ11: =IF(OR($M$4="Utah",$M$4="Colorado",$M$4="Nevada"),1.003,0.003) -> 0.003 | AK11: =INDEX($AI$2:$AI$13,MATCH(LARGE($AJ$2:$AJ$13,10),$AJ$2:$AJ$13,0)) -> 40
AD12: winter | AE12: =IF(#REF!="Latitude",3,IF(#REF!="1-Axis Tracker",5,1)) ->  | AF12: =IFERROR(IF(M4="New Mexico",INDEX(AD26:AI31,MATCH(K3,AC26:AC31,0),AE12),IF(M4="Arizona",INDEX(AD62:AI68,MATCH(K3,AC62:AC68,0),AE12),IF(M4="Colorado",INDEX(AD91:AI95,MATCH(K3,AC91:AC95,0),AE12),IF(M4="Utah",INDEX(AD126:AI131,MATCH(K3,AC126:AC131,0),AE12),IF(M4="Nevada",INDEX(AD155:AI162,MATCH(K3,AC155:AC162,0),AE12)))))),0) -> 0 | AI12: 41 | AJ12: =IF(OR($M$4="Utah",$M$4="Colorado",$M$4="Nevada"),1.002,0.002) -> 0.002 | AK12: =INDEX($AI$2:$AI$13,MATCH(LARGE($AJ$2:$AJ$13,11),$AJ$2:$AJ$13,0)) -> 41
A13: 35 | B13: 35 | J13: 35 | AD13: summer | AE13: =IF(#REF!="Latitude",4,IF(#REF!="1-Axis Tracker",6,2)) ->  | AF13: =IFERROR(IF(M4="New Mexico",INDEX(AD26:AI31,MATCH(K3,AC26:AC31,0),AE13),IF(M4="Arizona",INDEX(AD62:AI68,MATCH(K3,AC62:AC68,0),AE13),IF(M4="Colorado",INDEX(AD91:AI95,MATCH(K3,AC91:AC95,0),AE13),IF(M4="Utah",INDEX(AD126:AI131,MATCH(K3,AC126:AC131,0),AE13),IF(M4="Nevada",INDEX(AD155:AI162,MATCH(K3,AC155:AC162,0),AE13)))))),0) -> 0 | AI13: 42 | AJ13: =IF(OR($M$4="Utah",$M$4="Nevada"),1.001,0.001) -> 0.001 | AK13: =INDEX($AI$2:$AI$13,MATCH(LARGE($AJ$2:$AJ$13,12),$AJ$2:$AJ$13,0)) -> 42
AI14: Useless | AJ14: =COUNTIF(AJ2:AJ13,"<1") -> 6
L18: =IF(INDEX(AJ2:AJ13,MATCH(K3,AI2:AI13,0))<1,AC1,"") -> 
A20: 34 | B20: 34 | J20: 34
AD24: Adjusting tilt +/- 15 | AF24: Fixed at latitude | AH24: 1-Axis tracker
A25: 33 | B25: 33 | J25: 33 | AC25: Latitude | AD25: Winter | AE25: Summer | AF25: Winter | AG25: Summer | AH25: Winter | AI25: Summer
AC26: 31 | AD26: 5.6 | AE26: 6.4 | AF26: 5.1 | AG26: 6.6 | AH26: 6.3 | AI26: 8.7
AC27: 32 | AD27: 5.58 | AE27: 6.45 | AF27: 5.08 | AG27: 6.65 | AH27: 6.25 | AI27: 8.78
AC28: 33 | AD28: 5.55 | AE28: 6.5 | AF28: 5.05 | AG28: 6.7 | AH28: 6.2 | AI28: 8.85
AC29: 34 | AD29: 5.53 | AE29: 6.55 | AF29: 5.03 | AG29: 6.75 | AH29: 6.15 | AI29: 8.93
AC30: 35 | AD30: 5.5 | AE30: 6.6 | AF30: 5 | AG30: 6.8 | AH30: 6.1 | AI30: 9
A31: 32 | B31: 32 | J31: 32 | AC31: 36 | AD31: 5.6 | AE31: 6.55 | AF31: 5.1 | AG31: 6.75 | AH31: 6.2 | AI31: 9.05
A35: 31 | B35: 31 | J35: 31
B39: ARIZONA
A41: 36 | B41: 36 | J41: 36
A46: 35 | B46: 35 | J46: 35
A50: 34 | B50: 34 | J50: 34
L51: =IF(INDEX(AJ2:AJ13,MATCH(K3,AI2:AI13,0))<1,AC1,"") -> 
A56: 33 | B56: 33 | J56: 33
AD60: Adjusting tilt +/- 15 | AF60: Fixed at latitude | AH60: 1-Axis tracker
AC61: Latitude | AD61: Winter | AE61: Summer | AF61: Winter | AG61: Summer | AH61: Winter | AI61: Summer
A62: 32 | B62: 32 | J62: 32 | AC62: 31 | AD62: 5.9 | AE62: 6.4 | AF62: 5.3 | AG62: 6.6 | AH62: 6.6 | AI62: 8.9
AC63: 32 | AD63: 5.6 | AE63: 6.6 | AF63: 5.1 | AG63: 6.8 | AH63: 6.2 | AI63: 9.1
AC64: 33 | AD64: 5.3 | AE64: 6.8 | AF64: 4.9 | AG64: 7 | AH64: 5.8 | AI64: 9.3
AC65: 34 | AD65: 5.33 | AE65: 6.9 | AF65: 4.9 | AG65: 7.07 | AH65: 5.83 | AI65: 9.47
AC66: 35 | AD66: 5.37 | AE66: 7 | AF66: 4.9 | AG66: 7.13 | AH66: 5.87 | AI66: 9.63
A67: 31 | B67: 31 | J67: 31 | AC67: 36 | AD67: 5.4 | AE67: 7.1 | AF67: 4.9 | AG67: 7.2 | AH67: 5.9 | AI67: 9.8
AC68: 37 | AD68: 5.13 | AE68: 6.92 | AF68: 4.67 | AG68: 7.02 | AH68: 5.6 | AI68: 9.57
B71: COLORADO
A73: 41 | B73: 41 | J73: 41
A75: 40 | B75: 40 | J75: 40
A82: 39 | B82: 39 | J82: 39
L84: =IF(INDEX(AJ2:AJ13,MATCH(K3,AI2:AI13,0))<1,AC1,"") -> 
A89: 38 | B89: 38 | J89: 38 | AD89: Adjusting tilt +/- 15 | AF89: Fixed at latitude | AH89: 1-Axis tracker
AC90: Latitude | AD90: Winter | AE90: Summer | AF90: Winter | AG90: Summer | AH90: Winter | AI90: Summer
AC91: 37 | AD91: 5.7 | AE91: 6.5 | AF91: 5.2 | AG91: 6.7 | AH91: 6.3 | AI91: 9.1
AC92: 38 | AD92: 5.3 | AE92: 6.3 | AF92: 4.87 | AG92: 6.47 | AH92: 5.83 | AI92: 8.7
AC93: 39 | AD93: 4.9 | AE93: 6.1 | AF93: 4.53 | AG93: 6.23 | AH93: 5.37 | AI93: 8.3
AC94: 40 | AD94: 4.5 | AE94: 5.9 | AF94: 4.2 | AG94: 6 | AH94: 4.9 | AI94: 7.9
A95: 37 | B95: 37 | J95: 37 | AC95: 41 | AD95: 4.43 | AE95: 5.97 | AF95: 4.13 | AG95: 6.07 | AH95: 4.8 | AI95: 8.03
B103: UTAH
A105: 42 | B105: 42 | J105: 42
A106: 41 | B106: 41 | J106: 41
A111: 40 | B111: 40 | J111: 40
A116: 39 | B116: 39 | J116: 39
L117: =IF(INDEX(AJ2:AJ13,MATCH(K3,AI2:AI13,0))<1,AC1,"") -> 
A122: 38 | B122: 38 | J122: 38
AD124: Adjusting tilt +/- 15 | AF124: Fixed at latitude | AH124: 1-Axis tracker
AC125: Latitude | AD125: Winter | AE125: Summer | AF125: Winter | AG125: Summer | AH125: Winter | AI125: Summer
AC126: 37 | AD126: 5.13 | AE126: 6.92 | AF126: 4.67 | AG126: 7.02 | AH126: 5.6 | AI126: 9.57
AC127: 38 | AD127: 4.87 | AE127: 6.73 | AF127: 4.43 | AG127: 6.83 | AH127: 5.3 | AI127: 9.33
A128: 37 | B128: 37 | J128: 37 | AC128: 39 | AD128: 4.6 | AE128: 6.55 | AF128: 4.2 | AG128: 6.65 | AH128: 5 | AI128: 9.1
AC129: 40 | AD129: 4.34 | AE129: 6.46 | AF129: 3.98 | AG129: 6.58 | AH129: 4.69 | AI129: 8.96
AC130: 41 | AD130: 4.08 | AE130: 6.38 | AF130: 3.75 | AG130: 6.5 | AH130: 4.38 | AI130: 8.83
AC131: 42 | AD131: 3.81 | AE131: 6.29 | AF131: 3.53 | AG131: 6.43 | AH131: 4.06 | AI131: 8.69
B135: NEVADA
A137: 42 | B137: 42 | J137: 42
A138: 41 | B138: 41 | J138: 41
A141: 40 | B141: 40 | J141: 40
A145: 39 | B145: 39 | J145: 39
A149: 38 | B149: 38 | J149: 38
L150: =IF(INDEX(AJ2:AJ13,MATCH(K3,AI2:AI13,0))<1,AC1,"") -> 
A153: 37 | B153: 37 | J153: 37 | AD153: Adjusting tilt +/- 15 | AF153: Fixed at latitude | AH153: 1-Axis tracker
AC154: Latitude | AD154: Winter | AE154: Summer | AF154: Winter | AG154: Summer | AH154: Winter | AI154: Summer
AC155: 35 | AD155: 5.63 | AE155: 7.27 | AF155: 5.1 | AG155: 7.37 | AH155: 6.17 | AI155: 10
AC156: 36 | AD156: 5.4 | AE156: 7.1 | AF156: 4.9 | AG156: 7.2 | AH156: 5.9 | AI156: 9.8
AC157: 37 | AD157: 5.17 | AE157: 6.93 | AF157: 4.7 | AG157: 7.03 | AH157: 5.63 | AI157: 9.6
A158: 36 | B158: 36 | J158: 36 | AC158: 38 | AD158: 4.93 | AE158: 6.77 | AF158: 4.5 | AG158: 6.87 | AH158: 5.37 | AI158: 9.4
AC159: 39 | AD159: 4.7 | AE159: 6.6 | AF159: 4.3 | AG159: 6.7 | AH159: 5.1 | AI159: 9.2
AC160: 40 | AD160: 4.24 | AE160: 6.53 | AF160: 3.89 | AG160: 6.64 | AH160: 4.58 | AI160: 9.09
AC161: 41 | AD161: 3.78 | AE161: 6.45 | AF161: 3.48 | AG161: 6.58 | AH161: 4.05 | AI161: 8.98
AC162: 42 | AD162: 3.31 | AE162: 6.38 | AF162: 3.06 | AG162: 6.51 | AH162: 3.53 | AI162: 8.86
A163: 35 | B163: 35 | J163: 35

Sheet Lights
A1: Daily Energy Requirement of Lights
A2: Step 3: In the green cells to the right under the heading Quantity, enter the number of lights that you need to power. Next, enter the type of light (incandescent, LED, etc.) using the drop-down menu of those cells. If you have any other type of light, you can enter the power required and the number of lights in the "Other Lights" cells. Finally, enter the number of hours per day you will be using each type of light in order to obtain the Daily Energy Requirement. | I2: Power Requirements | R2: Incandescent
I3: Lights | J3: Quantity | K3: Type of Light | L3: Total Power (W) | M3: Hours/Day | N3: Total (watt-hr/day) | R3: Halogen
I4: 40 Watt Light | J4: 1 | K4: Halogen | L4: =IF(K4="Incandescent",D18,IF(K4="Halogen",E18,IF(K4="Fluorescent",F18,IF(K4="LED",G18,0)))) -> 28 | M4: 2 | N4: =M4*L4*J4 -> 56 | R4: Fluorescent
I5: 50 Watt Light | J5: 1 | K5: Fluorescent | L5: =IF(K5="Incandescent",D19,IF(K5="Halogen",E19,IF(K5="Fluorescent",F19,IF(K5="LED",G19,0)))) -> 15 | M5: 4 | N5: =M5*L5*J5 -> 60 | R5: LED
I6: 60 Watt Light | J6: 0 | K6: Incandescent | L6: =IF(K6="Incandescent",D20,IF(K6="Halogen",E20,IF(K6="Fluorescent",F20,IF(K6="LED",G20,0)))) -> 60 | M6: 0 | N6: 0
I7: 75 Watt Light | J7: 1 | K7: LED | L7: 15 | M7: 3 | N7: 45
I8: 100 Watt Light | J8: 0 | K8: Incandescent | L8: 100 | M8: 0 | N8: 0
A9: NOTE: The table below contains the typical power requirements of an incandescent light and the comparable power required by other types of lights. These values are used to determine the corresponding energy requirements depending on the type of light you will be using. | I9: 150 Watt Light | J9: 0 | K9: LED | L9: =IF(K9="Incandescent",D23,IF(K9="Halogen",E23,IF(K9="Fluorescent",F23,IF(K9="LED",G23,0)))) -> 30 | M9: 0 | N9: 0
I10: Other Lights | J10: 0 | K10: Misc | L10: 0 | M10: 0 | N10: =M10*L10*J10 -> 0
A12: Step 4: You can enter an additional power percentage in the Multiplier cell. This value will be used to generate an extra amount of power to provide for any additional uses. | I12: Daily Energy Requirement | M12: =SUM(N4:N10) -> 161 | N12: watt-hr/day
I13: Multiplier** (additional %) | L13: 0 | M13: %
A14: Step 5: After getting the Daily Energy Requirement, move on to the next sheet titled Battery Bank by clicking that sheet's tab on the bottom of this page. | I14: Daily Energy Requirement (with multiplier) | M14: =M12+M12*(L13/100) -> 161 | N14: watt-hr/day
I15: **Multiplier is used to add a percentage of the daily requirement for margin of error. Valid values are 0–20%. Use 0 if no margin is needed.
A16: Typical power requirement for lights (Watts/hour)
C17: Lumens | D17: Incandescent | E17: Halogen | F17: Fluorescent | G17: LED
A18: 40 Watt Light | C18: 450 | D18: 40 | E18: =D18*0.7 -> 28 | F18: =D18*0.3 -> 12 | G18: =D18*0.2 -> 8
A19: 50 Watt Light | C19: 600 | D19: 50 | E19: =D19*0.7 -> 35 | F19: =D19*0.3 -> 15 | G19: =D19*0.2 -> 10
A20: 60 Watt Light | C20: 800 | D20: 60 | E20: 42 | F20: 18 | G20: 12
A21: 75 Watt Light | C21: 1100 | D21: 75 | E21: 52.5 | F21: 22.5 | G21: 15
A22: 100 Watt Light | C22: 1600 | D22: 100 | E22: 70 | F22: 30 | G22: 20
A23: 150 Watt Light | C23: 2600 | D23: 150 | E23: 105 | F23: =D23*0.3 -> 45 | G23: 30

Sheet Battery Bank
A1: Battery Bank | AA1: Temperatures
A2: Step 6: In the System Features table below, enter the values of system voltage (6, 12, 24, or 48), system de-rating factor (typically 5–20%), minimum temperature where the batteries are kept, and solar panel efficiency (typically about 85%). These are used to calculate the total W/day and A/day capacity required for the loads. | AA2: F | AB2: C | AE2: 6
L3: NOTE: Enter one-way distance between components. The units are in feet. | AE3: 12
AA4: 80 | AB4: 26.7 | AC4: 1 | AE4: 24
L5: Distance from: | AA5: 70 | AB5: 21.2 | AC5: 1.04 | AE5: 48
A6: Step 7: In the Battery Bank Size table, enter the battery voltage and the rated battery Amp-hours. Enter the number of days you want the lights to be able to run without recharging (used for cloudy days). Finally, enter your maximum depth of discharge (typically between 20–60%). | L6: Solar panels to controller | O6: 10 | P6: ft | AA6: 60 | AB6: 15.6 | AC6: 1.11
L7: Batteries to controller | O7: 50 | P7: ft | AA7: 50 | AB7: 10 | AC7: 1.19
L8: Lights to controller | O8: 20 | P8: ft | AA8: 40 | AB8: 4.4 | AC8: 1.3
A9: Step 8: In the green cells to the right and using the diagram below as a guide, enter the distances between the components of the system. This is used to calculate the wire losses. | L9: Total Distance | O9: =SUM(O6:O8) -> 80 | P9: ft | AA9: 30 | AB9: -1.1 | AC9: 1.4
AA10: 20 | AB10: -6.7 | AC10: 1.59
AA11: 10 | AB11: -12.2 | AC11: 1.8
A12: SYSTEM FEATURES | AA12: New Mexico | AC12: 34
AA13: Arizona | AC13: 42
A14: System Voltage | E14: 12 | F14: V | AA14: Colorado | AC14: 24
A15: System De-rating (losses) | E15: 5 | F15: % | AA15: Utah | AC15: 26
A16: Minimum Temperature | E16: 10 | F16: F | AA16: Nevada | AC16: 30
A17: Solar Panel Efficiency | E17: 50 | F17: %
A18: Max Amps Drawn (All lights on) | E18: =ROUNDUP(Lights!M14/'Battery Bank'!E14,0) -> 14 | F18: A/day
A19: Total Wattage Required | E19: =ROUNDUP(((IF(E16=80,1,IF(E16=70,1.04,IF(E16=60,1.11,IF(E16=50,1.19,IF(E16=40,1.3,IF(E16=30,1.4,IF(E16=20,1.59,IF(E16=10,1.8,1))))))))*Lights!M14)/(E17/100))*(1+(E15/100)),0) -> 609 | F19: W/day
A20: TOTAL A/H REQUIRED | E20: =ROUNDUP(E19/E14,0) -> 51 | F20: A/day
A22: BATTERY BANK SIZE
A24: Battery Voltage | E24: 12 | F24: V
A25: Battery Amps/Hour Capacity | E25: 100 | F25: A/h
A26: Storage Days | E26: 2 | F26: days
A27: Maximum Depth of Discharge | E27: 50 | F27: %
A28: Battery Bank Wattage Required | E28: =ROUNDUP((E19*E26)/(E27/100),0) -> 2436 | F28: W/day
A29: Battery Bank Amperage Required | E29: =ROUNDUP(E28/E24,0) -> 203 | F29: A/day
A30: Batteries in Series | E30: =ROUNDUP(E14/E24,0) -> 1
A31: Batteries in Parallel | E31: =ROUNDUP((E28/(E30*E24))/E25,0) -> 3
A32: Total Number of Batteries | E32: =ROUNDUP(E30*E31,0) -> 3
A33: Total Battery Bank Wattage | E33: =E25*E24*E32 -> 3600 | F33: W/day
A34: Actual Days of Autonomy | E34: =E33/(E19/(E27/100)) -> 2.955665025

Sheet Array Sizing
A1: Sizing the PV Array
AM2: Wattage | AN2: Column | AR2: 1
A3: The purpose of this sheet is to calculate the size of the array needed for your system (see box to right). You should choose a PV module size (50–315W) from the sample list of ten below. The (most efficient) recommended choice is shown in the Recommended Option table at the bottom right. | AL3: Smallest | AM3: =SMALL($V$26:$AK$26,1) -> 4.2204 | AN3: =MATCH(SMALL($V$26:$AK$26,1),$V$26:$AK$26,0) -> 4 | AO3: =IFERROR(INDEX($V$12:$AK$12,AN3),0) -> 4c1v | AQ3: =IF(AO3>0,INDEX($V$27:$AK$27,AN3),0) -> 2 | AR3: 2
G4: Peak Panel Wattage | H4: ='Battery Bank'!E19*'Battery Bank'!E26/'Solar Resource'!K5 -> 243.6 | I4: W | Q4: Pump Requirements | AM4: =SMALL($V$26:$AK$26,2) -> 24.2202 | AN4: =MATCH(SMALL($V$26:$AK$26,2),$V$26:$AK$26,0) -> 2 | AO4: =IFERROR(INDEX($V$12:$AK$12,AN4),0) -> 2c1v | AQ4: =IF(AO4>0,INDEX($V$27:$AK$27,AN4),0) -> 5 | AR4: 3
Q5: Voltage | R5: =H6 -> 12 | S5: =R5 -> 12 | AM5: =SMALL($V$26:$AK$26,3) -> 29.2203 | AN5: =MATCH(SMALL($V$26:$AK$26,3),$V$26:$AK$26,0) -> 3 | AO5: 3c1v | AQ5: 4 | AR5: 4
G6: Voltage | H6: ='Battery Bank'!E14 -> 12 | I6: V | Q6: Current | R6: =H4/H6 -> 20.3 | S6: =R6/0.8 -> 25.375 | AM6: =SMALL($V$26:$AK$26,4) -> 44.2206 | AN6: =MATCH(SMALL($V$26:$AK$26,4),$V$26:$AK$26,0) -> 6 | AO6: =IFERROR(INDEX($V$12:$AK$12,AN6),0) -> 0 | AQ6: 0 | AR6: 5
Q7: Power | R7: =H4 -> 243.6 | S7: =R7/0.8 -> 304.5 | AM7: =SMALL($V$26:$AK$26,5) -> 59.22 | AN7: =MATCH(SMALL($V$26:$AK$26,5),$V$26:$AK$26,0) -> 1 | AO7: =IFERROR(INDEX($V$12:$AK$12,AN7),0) -> 0 | AQ7: 0 | AR7: 6
A8: NOTE: Modules in series (a string) give the required voltage, and the modules in parallel will achieve the power required by increasing the total amount of current. | Q8: Real Power | R8: =H4 -> 243.6 | S8: =R8*1.05 -> 255.78 | AM8: =SMALL($V$26:$AK$26,6) -> 69.2205 | AN8: =MATCH(SMALL($V$26:$AK$26,6),$V$26:$AK$26,0) -> 5 | AO8: =IFERROR(INDEX($V$12:$AK$12,AN8),0) -> 5c1v | AQ8: 2 | AR8: 7
AM9: =SMALL($V$26:$AK$26,7) -> 94.2207 | AN9: =MATCH(SMALL($V$26:$AK$26,7),$V$26:$AK$26,0) -> 7 | AO9: 0 | AQ9: 0 | AR9: 8
A10: ============================================================================================== | AM10: =SMALL($V$26:$AK$26,8) -> 144.2208 | AN10: =MATCH(SMALL($V$26:$AK$26,8),$V$26:$AK$26,0) -> 8 | AO10: 0 | AQ10: 0 | AR10: 9
A11: Step 9: Enter your choice from the table below for a solar panel size to use (module 1–10) : | I11: 2 | AM11: =SMALL($V$26:$AK$26,9) -> 194.2209 | AN11: =MATCH(SMALL($V$26:$AK$26,9),$V$26:$AK$26,0) -> 9 | AO11: 0 | AQ11: 0 | AR11: 10
A12: PV module choices | E12: Sizes are inches | V12: =IF(AND((((INDEX($C$14:$C$23,V27)))<($S$5+$AN$25)),((INDEX($C$14:$C$23,V27))>($S$5-$AN$25))),"1v1c",IF(AND((((INDEX(D14:D23,V27)))<(S6+AN26)),((INDEX(D14:D23,V27))>(S6-AN26))),"1c1v",0)) -> 0 | W12: =IF(AND((((INDEX(C14:C23,W27))*2)<(S5+AN25)),((INDEX(C14:C23,W27)*2)>(S5-AN25))),"2v1c",IF(AND((((INDEX(D14:D23,W27))*2)<(S6+AN26)),((INDEX(D14:D23,W27)*2)>(S6-AN26))),"2c1v",0)) -> 2c1v | X12: =IF(AND((((INDEX(C14:C23,X27))*3)<(S5+AN25)),((INDEX(C14:C23,X27)*3)>(S5-AN25))),"3v1c",IF(AND((((INDEX(D14:D23,X27))*3)<(S6+AN26)),((INDEX(D14:D23,X27)*3)>(S6-AN26))),"3c1v",0)) -> 3c1v | Y12: =IF(AND((((INDEX(C14:C23,Y27))*2)<(S5+AN25)),((INDEX(C14:C23,Y27)*2)>(S5-AN25))),"2v2c",IF(AND((((INDEX(D14:D23,Y27))*2)<(S6+AN26)),((INDEX(D14:D23,Y27)*2)>(S6-AN26))),"2c2v",IF(AND((((INDEX(C14:C23,Y27))*4)<(S5+AN25)),((INDEX(C14:C23,Y27)*4)>(S5-AN25))),"4v1c",IF(AND((((INDEX(D14:D23,Y27))*4)<(S6+AN26)),((INDEX(D14:D23,Y27)*4)>(S6-AN26))),"4c1v",0)))) -> 4c1v | Z12: =IF(AND((((INDEX(C14:C23,Z27))*5)<(S5+AN25)),((INDEX(C14:C23,Z27)*5)>(S5-AN25))),"5v1c",IF(AND((((INDEX(D14:D23,Z27))*5)<(S6+AN26)),((INDEX(D14:D23,Z27)*5)>(S6-AN26))),"5c1v",0)) -> 5c1v | AA12: =IF(AND((((INDEX(C14:C23,AA27))*2)<(S5+AN25)),((INDEX(C14:C23,AA27)*2)>(S5-AN25))),"2v3c",IF(AND((((INDEX(D14:D23,AA27))*2)<(S6+AN26)),((INDEX(D14:D23,AA27)*2)>(S6-AN26))),"2c3v",IF(AND((((INDEX(C14:C23,AA27))*3)<(S5+AN25)),((INDEX(C14:C23,AA27)*3)>(S5-AN25))),"3v2c",IF(AND((((INDEX(D14:D23,AA27))*3)<(S6+AN26)),((INDEX(D14:D23,AA27)*3)>(S6-AN26))),"3c2v",0)))) -> 0 | AB12: =IF(AND((((INDEX(C14:C23,AB27))*7)<(S5+AN25)),((INDEX(C14:C23,AB27)*7)>(S5-AN25))),"7v1c",IF(AND((((INDEX(D14:D23,AB27))*7)<(S6+AN26)),((INDEX(D14:D23,AB27)*7)>(S6-AN26))),"7c1v",0)) ->  | AC12: =IF(AND((((INDEX(C14:C23,AC27))*4)<(S5+AN25)),((INDEX(C14:C23,AC27)*4)>(S5-AN25))),"4v2c",IF(AND((((INDEX(D14:D23,AC27))*4)<(S6+AN26)),((INDEX(D14:D23,AC27)*4)>(S6-AN26))),"4c2v",0)) -> 0 | AD12: =IF(AND((((INDEX(C14:C23,AD27))*3)<(S5+AN25)),((INDEX(C14:C23,AD27)*3)>(S5-AN25))),"3v3c",IF(AND((((INDEX(D14:D23,AD27))*3)<(S6+AN26)),((INDEX(D14:D23,AD27)*3)>(S6-AN26))),"3c3v",0)) -> 0 | AE12: =IF(AND((((INDEX(C14:C23,AE27))*5)<(S5+AN25)),((INDEX(C14:C23,AE27)*5)>(S5-AN25))),"5v2c",IF(AND((((INDEX(D14:D23,AE27))*5)<(S6+AN26)),((INDEX(D14:D23,AE27)*5)>(S6-AN26))),"5c2v",0)) -> 5c2v | AF12: =IF(AND((((INDEX(C14:C23,AF27))*11)<(S5+AN25)),((INDEX(C14:C23,AF27)*11)>(S5-AN25))),"11v1c",IF(AND((((INDEX(D14:D23,AF27))*11)<(S6+AN26)),((INDEX(D14:D23,AF27)*11)>(S6-AN26))),"11c1v",0)) ->  | AG12: =IF(AND((((INDEX(C14:C23,AG27))*6)<(S5+AN25)),((INDEX(C14:C23,AG27)*6)>(S5-AN25))),"6v2c",IF(AND((((INDEX(D14:D23,AG27))*6)<(S6+AN26)),((INDEX(D14:D23,AG27)*6)>(S6-AN26))),"6c2v",IF(AND((((INDEX(C14:C23,AG27))*4)<(S5+AN25)),((INDEX(C14:C23,AG27)*4)>(S5-AN25))),"4v3c",IF(AND((((INDEX(D14:D23,AG27))*4)<(S6+AN26)),((INDEX(D14:D23,AG27)*4)>(S6-AN26))),"4c3v",IF(AND((((INDEX(C14:C23,AG27))*3)<(S5+AN25)),((INDEX(C14:C23,AG27)*3)>(S5-AN25))),"3v4c",IF(AND((((INDEX(D14:D23,AG27))*3)<(S6+AN26)),((INDEX(D14:D23,AG27)*3)>(S6-AN26))),"3c4v",0)))))) -> 6c2v | AH12: =IF(AND((((INDEX(C14:C23,AH27))*13)<(S5+AN25)),((INDEX(C14:C23,AH27)*13)>(S5-AN25))),"13v1c",IF(AND((((INDEX(D14:D23,AH27))*13)<(S6+AN26)),((INDEX(D14:D23,AH27)*13)>(S6-AN26))),"13c1v",0)) ->  | AI12: =IF(AND((((INDEX(C14:C23,AI27))*7)<(S5+AN25)),((INDEX(C14:C23,AI27)*7)>(S5-AN25))),"7v2c",IF(AND((((INDEX(D14:D23,AI27))*7)<(S6+AN26)),((INDEX(D14:D23,AI27)*7)>(S6-AN26))),"7c2v",0)) ->  | AJ12: =IF(AND((((INDEX(C14:C23,AJ27))*5)<(S5+AN25)),((INDEX(C14:C23,AJ27)*5)>(S5-AN25))),"5v3c",IF(AND((((INDEX(D14:D23,AJ27))*5)<(S6+AN26)),((INDEX(D14:D23,AJ27)*5)>(S6-AN26))),"5c3v",IF(AND((((INDEX(C14:C23,AJ27))*3)<(S5+AN25)),((INDEX(C14:C23,AJ27)*3)>(S5-AN25))),"3v5c",IF(AND((((INDEX(D14:D23,AJ27))*3)<(S6+AN26)),((INDEX(D14:D23,AJ27)*3)>(S6-AN26))),"3c5v",0)))) -> 5c3v | AK12: =IF(AND((((INDEX(C14:C23,AK27))*4)<(S5+AN25)),((INDEX(C14:C23,AK27)*4)>(S5-AN25))),"4v4c",IF(AND((((INDEX(D14:D23,AK27))*4)<(S6+AN26)),((INDEX(D14:D23,AK27)*4)>(S6-AN26))),"4c4v",IF(AND((((INDEX(C14:C23,AK27))*8)<(S5+AN25)),((INDEX(C14:C23,AK27)*8)>(S5-AN25))),"8v2c",IF(AND((((INDEX(D14:D23,AK27))*8)<(S6+AN26)),((INDEX(D14:D23,AK27)*8)>(S6-AN26))),"8c2v",0)))) -> 8c2v | AM12: =SMALL($V$26:$AK$26,10) -> 244.221 | AN12: =MATCH(SMALL($V$26:$AK$26,10),$V$26:$AK$26,0) -> 10 | AO12: 5c2v | AQ12: 1
B13: Power | C13: Vmp | D13: Imp | E13: length | F13: width | G13: For your chosen PV selection , you need: | V13: Number of panels used | AL13: Number | AM13: =SMALL($V$26:$AK$26,11) -> 294.2211 | AN13: =MATCH(SMALL($V$26:$AK$26,11),$V$26:$AK$26,0) -> 11 | AO13: 0 | AQ13: 0
A14: 1 | B14: 50 | C14: 17.4 | D14: 2.9 | E14: 26 | F14: 25 | G14: Modules in Series (a string) | I14: =IFERROR(IF(J14=0,0,IF(MID(J14,2,1)="v",(MID(J14,1,1)),MID(J14,3,1))),ROUNDUP((H6/D26),0)) -> 1 | J14: =INDEX(AO3:AO18,MATCH(I11,AQ3:AQ18,0)) -> 4c1v | U14: Wattage | V14: 1 | W14: 2 | X14: 3 | Y14: 4 | Z14: 5 | AA14: 6 | AB14: 7 | AC14: 8 | AD14: 9 | AE14: 10 | AF14: 11 | AG14: 12 | AH14: 13 | AI14: 14 | AJ14: 15 | AK14: 16 | AL14: option | AM14: =SMALL($V$26:$AK$26,12) -> 344.2212 | AN14: =MATCH(SMALL($V$26:$AK$26,12),$V$26:$AK$26,0) -> 12 | AO14: 6c2v | AQ14: 1
A15: 2 | B15: 65 | C15: 17.9 | D15: 3.6 | E15: 40 | F15: 20 | I15: =D26*I14 -> 17.9 | J15: V | U15: 50 | V15: =V14*$U$15 -> 50 | W15: =W14*$U$15 -> 100 | X15: 150 | Y15: 200 | Z15: 250 | AA15: 300 | AB15: =IF($AK$29=1,$AB$14*U15,0) -> 350 | AC15: =AC14*$U$15 -> 400 | AD15: =IF($AK$29=1,$AD$14*U15,0) -> 450 | AE15: 500 | AF15: =IF($AK$29=1,$AF$14*U15,0) -> 550 | AG15: 600 | AH15: =IF($AK$29=1,$AH$14*U15,0) -> 650 | AI15: 700 | AJ15: =IF($AK$29=1,$AJ$14*U15,0) -> 750 | AK15: 800 | AL15: 1 | AM15: =SMALL($V$26:$AK$26,13) -> 394.2213 | AN15: =MATCH(SMALL($V$26:$AK$26,13),$V$26:$AK$26,0) -> 13 | AO15: 0 | AQ15: 0
A16: 3 | B16: 80 | C16: 17.6 | D16: 4.5 | E16: 40 | F16: 26 | G16: Number of PV Strings in Parallel | I16: =IFERROR(IF(J14=0,0,IF(MID(J14,4,1)="c",(MID(J14,3,1)),MID(J14,1,1))),ROUNDUP(((H4/(I14*D26))/D27),0)) -> 4 | U16: 65 | V16: =V14*$U$16 -> 65 | W16: =W14*$U$16 -> 130 | X16: 195 | Y16: 260 | Z16: 325 | AA16: 390 | AB16: =IF($AK$29=1,$AB$14*U16,0) -> 455 | AC16: 520 | AD16: =IF($AK$29=1,$AD$14*U16,0) -> 585 | AE16: 650 | AF16: =IF($AK$29=1,$AF$14*U16,0) -> 715 | AG16: 780 | AH16: =IF($AK$29=1,$AH$14*U16,0) -> 845 | AI16: 910 | AJ16: =IF($AK$29=1,$AJ$14*U16,0) -> 975 | AK16: 1040 | AL16: 2 | AM16: =SMALL($V$26:$AK$26,14) -> 444.2214 | AN16: =MATCH(SMALL($V$26:$AK$26,14),$V$26:$AK$26,0) -> 14 | AO16: 0 | AQ16: 0
A17: 4 | B17: 95 | C17: 18.5 | D17: 5.1 | E17: 47.5 | F17: 21.5 | I17: =D27*I16 -> 14.4 | J17: A | U17: 80 | V17: =V14*$U$17 -> 80 | W17: =W14*$U$17 -> 160 | X17: 240 | Y17: 320 | Z17: 400 | AA17: 480 | AB17: 560 | AC17: 640 | AD17: 720 | AE17: 800 | AF17: 880 | AG17: 960 | AH17: 1040 | AI17: 1120 | AJ17: 1200 | AK17: 1280 | AL17: 3 | AM17: =SMALL($V$26:$AK$26,15) -> 494.2215 | AN17: =MATCH(SMALL($V$26:$AK$26,15),$V$26:$AK$26,0) -> 15 | AO17: 5c3v | AQ17: 1
A18: 5 | B18: 140 | C18: 17.7 | D18: 7.9 | E18: 59 | F18: 26 | G18: Total Number of Panels | I18: =(I14*I16) -> 4 | U18: 95 | V18: =V14*$U$18 -> 95 | W18: =W14*$U$18 -> 190 | X18: 285 | Y18: 380 | Z18: 475 | AA18: 570 | AB18: 665 | AC18: 760 | AD18: 855 | AE18: 950 | AF18: 1045 | AG18: 1140 | AH18: 1235 | AI18: 1330 | AJ18: 1425 | AK18: 1520 | AL18: 4 | AM18: =SMALL($V$26:$AK$26,16) -> 544.2216 | AN18: =MATCH(SMALL($V$26:$AK$26,16),$V$26:$AK$26,0) -> 16 | AO18: 8c2v | AQ18: 1
A19: 6 | B19: 185 | C19: 36.2 | D19: 5.1 | E19: 62 | F19: 31 | I19: =I15*I17 -> 257.76 | J19: W | U19: 140 | V19: =V14*$U$19 -> 140 | W19: =W14*$U$19 -> 280 | X19: 420 | Y19: 560 | Z19: 700 | AA19: 840 | AB19: 980 | AC19: 1120 | AD19: =IF($AK$29=1,$AD$14*U19,0) -> 1260 | AE19: 1400 | AF19: 1540 | AG19: 1680 | AH19: 1820 | AI19: 1960 | AJ19: 2100 | AK19: 2240 | AL19: 5
A20: 7 | B20: 200 | C20: 36.9 | D20: 5.4 | E20: 62 | F20: 32 | G20: Total Peak Power | H20: =(D26*D27*I18)-(D26*D27*I18*M32) -> 250.8959568 | I20: Watts | K20: Recommended option | N20: Other recommended panels | U20: 185 | V20: =V14*$U$20 -> 185 | W20: =W14*$U$20 -> 370 | X20: 555 | Y20: 740 | Z20: 925 | AA20: 1110 | AB20: 1295 | AC20: 1480 | AD20: 1665 | AE20: 1850 | AF20: 2035 | AG20: 2220 | AH20: 2405 | AI20: 2590 | AJ20: 2775 | AK20: 2960 | AL20: 6
A21: 8 | B21: 230 | C21: 29.8 | D21: 7.72 | E21: 66 | F21: 37.5 | J21: =INDEX(AO3:AO18,MATCH(M22,AN3:AN18,0)) -> 4c1v | K21: Panel Option Number | M21: =INDEX(V27:AK27,M22) -> 2 | N21: options are: | U21: 200 | V21: =V14*$U$21 -> 200 | W21: =W14*$U$21 -> 400 | X21: 600 | Y21: 800 | Z21: 1000 | AA21: 1200 | AB21: 1400 | AC21: 1600 | AD21: 1800 | AE21: 2000 | AF21: 2200 | AG21: 2400 | AH21: 2600 | AI21: 2800 | AJ21: 3000 | AK21: 3200 | AL21: 7
A22: 9 | B22: 250 | C22: 31.1 | D22: 8.05 | E22: 66 | F22: 39.5 | G22: Total Wire Length | K22: Number of Panels | M22: =IF(AO3>0,AN3,IF(AO4>0,AN4,IF(AO5>0,AN5,IF(AO6>0,AN6,IF(AO7>0,AN7,IF(AO8>0,AN8,IF(AO9>0,AN9,IF(AO10>0,AN10,IF(AO11>0,AN11,IF(AO12>0,AN12,IF(AO13>0,AN13,IF(AO14>0,AN14,IF(AO15>0,AN15,IF(AO16>0,AN16,IF(AO17>0,AN17,IF(AO18>0,AN18)))))))))))))))) -> 4 | O22: =IF($AO$38<9,INDEX($AP$28:$AP$37,1+AT28),"") -> 1 | U22: 230 | V22: =V14*$U$22 -> 230 | W22: =W14*$U$22 -> 460 | X22: 690 | Y22: 920 | Z22: 1150 | AA22: 1380 | AB22: 1610 | AC22: 1840 | AD22: 2070 | AE22: 2300 | AF22: 2530 | AG22: 2760 | AH22: 2990 | AI22: 3220 | AJ22: 3450 | AK22: 3680 | AL22: 8
A23: 10 | B23: 315 | C23: 39.8 | D23: 7.92 | E23: 65.5 | F23: 52 | H23: ='Battery Bank'!O9*1.15 -> 92 | I23: ft | K23: Total Wattage | M23: =INDEX(U15:U24,M21)*M22 -> 260 | O23: =IF($AO$38<8,INDEX($AP$28:$AP$37,2+AT29),"") -> 4 | U23: 250 | V23: =V14*$U$23 -> 250 | W23: =W14*$U$23 -> 500 | X23: =X14*$U$23 -> 750 | Y23: 1000 | Z23: 1250 | AA23: 1500 | AB23: 1750 | AC23: 2000 | AD23: 2250 | AE23: 2500 | AF23: 2750 | AG23: 3000 | AH23: 3250 | AI23: 3500 | AJ23: 3750 | AK23: 4000 | AL23: 9
G24: Minimum Amp Capacity of the Controller | O24: =IF($AO$38<7,INDEX($AP$28:$AP$37,3+AT30),"") -> 5 | U24: 315 | V24: =V14*$U$24 -> 315 | W24: =W14*$U$24 -> 630 | X24: 945 | Y24: 1260 | Z24: 1575 | AA24: 1890 | AB24: 2205 | AC24: 2520 | AD24: 2835 | AE24: 3150 | AF24: 3465 | AG24: 3780 | AH24: 4095 | AI24: 4410 | AJ24: 4725 | AK24: 5040 | AL24: 10
A25: The chosen panel Power is: | D25: =LOOKUP(I11,A14:A23,B14:B23) -> 65 | E25: Watts | H25: =ROUNDUP(I16*D27*1.25,0) -> 18 | I25: amps | K25: Modules in Series | M25: =IF(MID(J21,2,1)="v",(MID(J21,1,1)),MID(J21,3,1)) -> 1 | O25: =IF($AO$38<6,INDEX($AP$28:$AP$37,4+AT31),"") ->  | U25: T Watts | V25: =MIN(IF((V15:V24>=$S$8),V15:V24)) -> 315 | W25: =MIN(IF((W15:W24>=$S$8),W15:W24)) -> 280 | X25: =MIN(IF((X15:X24>=$S$8),X15:X24)) -> 285 | Y25: =MIN(IF((Y15:Y24>=$S$8),Y15:Y24)) -> 260 | Z25: =MIN(IF((Z15:Z24>=$S$8),Z15:Z24)) -> 325 | AA25: =MIN(IF((AA15:AA24>=$S$8),AA15:AA24)) -> 300 | AB25: =MIN(IF((AB15:AB24>=$S$8),AB15:AB24)) -> 350 | AC25: =MIN(IF((AC15:AC24>=$S$8),AC15:AC24)) -> 400 | AD25: =MIN(IF((AD15:AD24>=$S$8),AD15:AD24)) -> 450 | AE25: =MIN(IF((AE15:AE24>=$S$8),AE15:AE24)) -> 500 | AF25: =MIN(IF((AF15:AF24>=$S$8),AF15:AF24)) -> 550 | AG25: =MIN(IF((AG15:AG24>=$S$8),AG15:AG24)) -> 600 | AH25: =MIN(IF((AH15:AH24>=$S$8),AH15:AH24)) -> 650 | AI25: =MIN(IF((AI15:AI24>=$S$8),AI15:AI24)) -> 700 | AJ25: =MIN(IF((AJ15:AJ24>=$S$8),AJ15:AJ24)) -> 750 | AK25: =MIN(IF((AK15:AK24>=$S$8),AK15:AK24)) -> 800 | AM25: +/- volts | AN25: 12
A26: The chosen panel Voltage is: | D26: =LOOKUP(I11,A14:A23,C14:C23) -> 17.9 | E26: Volts | G26: Minimum Fuse Size | K26: Voltage generated | M26: =(INDEX(C14:C23,M21))*M25 -> 17.9 | N26: V | O26: =IF($AO$38<5,INDEX($AP$28:$AP$37,5+AT32),"") ->  | U26: Excess | V26: =ABS(V25-$S$8) -> 59.22 | W26: =ABS(W25-$S$8)+0.0002 -> 24.2202 | X26: =ABS(X25-$S$8)+0.0003 -> 29.2203 | Y26: =ABS(Y25-$S$8)+0.0004 -> 4.2204 | Z26: =ABS(Z25-$S$8)+0.0005 -> 69.2205 | AA26: =ABS(AA25-$S$8)+0.0006 -> 44.2206 | AB26: =ABS(AB25-$S$8)+0.0007 -> 94.2207 | AC26: =ABS(AC25-$S$8)+0.0008 -> 144.2208 | AD26: =ABS(AD25-$S$8)+0.0009 -> 194.2209 | AE26: =ABS(AE25-$S$8)+0.001 -> 244.221 | AF26: =ABS(AF25-$S$8)+0.0011 -> 294.2211 | AG26: =ABS(AG25-$S$8)+0.0012 -> 344.2212 | AH26: =ABS(AH25-$S$8)+0.0013 -> 394.2213 | AI26: =ABS(AI25-$S$8)+0.0014 -> 444.2214 | AJ26: =ABS(AJ25-$S$8)+0.0015 -> 494.2215 | AK26: =ABS(AK25-$S$8)+0.0016 -> 544.2216 | AM26: +/- current | AN26: 13
A27: The chosen panel Current is: | D27: =LOOKUP(I11,A14:A23,D14:D23) -> 3.6 | E27: Amps | H27: =ROUNDUP(D27*I16*1.56,0) -> 23 | I27: amps | K27: Modules in Parallel | M27: =IF(MID(J21,4,1)="c",(MID(J21,3,1)),MID(J21,1,1)) -> 4 | O27: =IF($AO$38<4,INDEX($AP$28:$AP$37,6+AT33),"") ->  | U27: Rows | V27: =MATCH(V25,V15:V24,0) -> 10 | W27: =MATCH(W25,W15:W24,0) -> 5 | X27: =MATCH(X25,X15:X24,0) -> 4 | Y27: 2 | Z27: 2 | AA27: =MATCH(AA25,AA15:AA24,0) -> 1 | AB27: =IF(AK30=0,0,MATCH(AB25,AB15:AB24,0)) -> 0 | AC27: 1 | AD27: 1 | AE27: 1 | AF27: =IF(AK30=0,0,MATCH(AF25,AF15:AF24,0)) -> 0 | AG27: 1 | AH27: =IF(AK30=0,0,MATCH(AH25,AH15:AH24,0)) -> 0 | AI27: =IF(AK30=0,0,MATCH(AI25,AI15:AI24,0)) -> 0 | AJ27: 1 | AK27: 1 | AN27: Option | AO27: Y/N | AP27: Order | AS27: Other Options
K28: Current generated | M28: =(INDEX(D14:D23,M21))*M27 -> 14.4 | N28: A | O28: =IF($AO$38<3,INDEX($AP$28:$AP$37,7+AT34),"") ->  | AN28: 1 | AO28: =IF(AQ28>0,1.0001,0.0001) -> 1.0001 | AP28: =INDEX($AN$28:$AN$37,MATCH(LARGE($AO$28:$AO$37,1),$AO$28:$AO$37,0)) -> 1 | AQ28: =COUNTIF($AQ$3:$AQ$18,AN28) -> 4 | AS28: =IF($M$21=AP28,1,0) -> 0 | AT28: =SUM(AS28) -> 0
K29: Actual power generated | M29: =M28*M26 -> 257.76 | N29: W | O29: =IF($AO$38<2,INDEX($AP$28:$AP$37,8+AT35),"") ->  | V29: Col. | W29: =MATCH(MIN(V26:AK26),V26:AK26,0) -> 4 | Y29: Row | Z29: =INDEX(V27:AL27,1,W29) -> 2 | AG29: Use odd numbers? | AK29: 1 | AN29: 2 | AO29: =IF(AQ29>0,1.00009,0.00009) -> 1.00009 | AP29: =INDEX($AN$28:$AN$37,MATCH(LARGE($AO$28:$AO$37,2),$AO$28:$AO$37,0)) -> 2 | AQ29: =COUNTIF($AQ$3:$AQ$18,AN29) -> 2 | AS29: =IF($M$21=AP29,1,0) -> 1 | AT29: =SUM(AS28:AS29) -> 1
A30: NOTE: A controller will be needed to control the power generated for the PV modules and the power going to the | O30: =IF($AO$38<1,INDEX($AP$28:$AP$37,9+AT36),"") ->  | AG30: Disable(7,11,13,14) | AK30: 0 | AN30: 3 | AO30: =IF(AQ30>0,1.00008,0.00008) -> 8e-05 | AP30: =INDEX($AN$28:$AN$37,MATCH(LARGE($AO$28:$AO$37,3),$AO$28:$AO$37,0)) -> 4 | AQ30: 0 | AS30: =IF($M$21=AP30,1,0) -> 0 | AT30: =SUM(AS28:AS30) -> 1
A31: batteries. These are selected to marry with a particular wattage and amperage. | K31: Wire size recommended | M31: =IFERROR(D49,"None") -> Wire 4 | O31: =IF($AO$38<0,INDEX($AP$28:$AP$37,10+AT37),"") ->  | AN31: 4 | AO31: =IF(AQ31>0,1.00007,0.00007) -> 1.00007 | AP31: =INDEX($AN$28:$AN$37,MATCH(LARGE($AO$28:$AO$37,4),$AO$28:$AO$37,0)) -> 5 | AQ31: 1 | AS31: 0 | AT31: =SUM(AS28:AS31) -> 1
A32: Step 10: Proceed to the next sheet titled Design Spec where you will see your design scenario's components and example prices. | K32: Wire power losses | M32: =IF(M31="Wire 12",H48,IF(M31="Wire 10",I48,IF(M31="Wire 8",J48,IF(M31="Wire 6",K48,IF(M31="Wire 4",L48,IF(M31="Wire 2",M48,IF(M31="Wire 0",N48,IF(M31="Wire 00",O48,0)))))))) -> 0.02662959017 | N32: Acceptable voltage wire losses | AN32: 5 | AO32: =IF(AQ32>0,1.00006,0.00006) -> 1.00006 | AP32: =INDEX($AN$28:$AN$37,MATCH(LARGE($AO$28:$AO$37,5),$AO$28:$AO$37,0)) -> 3 | AQ32: 1 | AS32: 0 | AT32: =SUM(AS28:AS32) -> 1
K33: Wire voltage losses | M33: =IF(M31="Wire 12",H50,IF(M31="Wire 10",I50,IF(M31="Wire 8",J50,IF(M31="Wire 6",K50,IF(M31="Wire 4",L50,IF(M31="Wire 2",M50,IF(M31="Wire 0",N50,IF(M31="Wire 00",O50,0)))))))) -> 0.03685756425 | O33: 0.05 | AN33: 6 | AO33: =IF(AQ33>0,1.00005,0.00005) -> 5e-05 | AP33: =INDEX($AN$28:$AN$37,MATCH(LARGE($AO$28:$AO$37,6),$AO$28:$AO$37,0)) -> 6 | AQ33: 0 | AS33: 0 | AT33: =SUM(AS28:AS33) -> 1
AN34: 7 | AO34: =IF(AQ34>0,1.00004,0.00004) -> 4e-05 | AP34: =INDEX($AN$28:$AN$37,MATCH(LARGE($AO$28:$AO$37,7),$AO$28:$AO$37,0)) -> 7 | AQ34: =COUNTIF($AQ$3:$AQ$18,AN34) -> 0 | AS34: =IF($M$21=AP34,1,0) -> 0 | AT34: =SUM(AS28:AS34) -> 1
A35: With the selected panel, this system will generate | F35: =H20*'Solar Resource'!K5 -> 1254.479784 | G35: watts/day | AN35: 8 | AO35: =IF(AQ35>0,1.00003,0.00003) -> 3e-05 | AP35: =INDEX($AN$28:$AN$37,MATCH(LARGE($AO$28:$AO$37,8),$AO$28:$AO$37,0)) -> 8 | AQ35: =COUNTIF($AQ$3:$AQ$18,AN35) -> 0 | AS35: =IF($M$21=AP35,1,0) -> 0 | AT35: =SUM(AS28:AS35) -> 1
C36: of the total required of | F36: ='Solar Resource'!K5*H4 -> 1218 | G36: watts/day | AN36: 9 | AO36: =IF(AQ36>0,1.00002,0.00002) -> 2e-05 | AP36: =INDEX($AN$28:$AN$37,MATCH(LARGE($AO$28:$AO$37,9),$AO$28:$AO$37,0)) -> 9 | AQ36: =COUNTIF($AQ$3:$AQ$18,AN36) -> 0 | AS36: =IF($M$21=AP36,1,0) -> 0 | AT36: =SUM(AS28:AS36) -> 1
AN37: 10 | AO37: =IF(AQ37>0,1.00001,0.00001) -> 1e-05 | AP37: =INDEX($AN$28:$AN$37,MATCH(LARGE($AO$28:$AO$37,10),$AO$28:$AO$37,0)) -> 10 | AQ37: =COUNTIF($AQ$3:$AQ$18,AN37) -> 0 | AS37: =IF($M$21=AP37,1,0) -> 0 | AT37: =SUM(AS28:AS37) -> 1
AN38: Useless | AO38: =COUNTIF(AO28:AO37,"<1") -> 6 | AP38: 1
H44: Wire 12 | I44: Wire 10 | J44: Wire 8 | K44: Wire 6 | L44: Wire 4 | M44: Wire 2 | N44: Wire 0 | O44: Wire 00
G45: Wire Resistance | H45: =(($D$48)*2)*0.1588/100 -> 0.292192 | I45: =(($D$48)*2)*0.0999/100 -> 0.183816 | J45: =(($D$48)*2)*0.0628/100 -> 0.115552 | K45: =(($D$48)*2)*0.0395/100 -> 0.07268 | L45: =(($D$48)*2)*0.0249/100 -> 0.045816 | M45: =(($D$48)*2)*0.0156/100 -> 0.028704 | N45: =(($D$48)*2)*0.0098/100 -> 0.018032 | O45: =(($D$48)*2)*0.0078/100 -> 0.014352
G46: Total Resistance | H46: =D51+H45 -> 0.292192 | I46: =D51+I45 -> 0.183816 | J46: =D51+J45 -> 0.115552 | K46: =D51+K45 -> 0.07268 | L46: =D51+L45 -> 0.045816 | M46: =D51+M45 -> 0.028704 | N46: =D51+N45 -> 0.018032 | O46: =D51+O45 -> 0.014352
G47: Power Losses | H47: =((($D$27*$I$16)*0.85)^2)*H45 -> 43.77550418 | I47: =((($D$27*$I$16)*0.85)^2)*I45 -> 27.53887196 | J47: 17.31172332 | K47: 10.88874317 | L47: 6.864043162 | M47: 4.30036439 | N47: 2.701510963 | O47: 2.150182195
A48: Total Wire Length | D48: =IF(H23>0,H23,100) -> 92 | G48: Percentage | H48: =H47/(D26*D27*I18) -> 0.1698304787 | I48: =I47/(D26*D27*I18) -> 0.1068391991 | J48: =J47/(D26*D27*I18) -> 0.06716217922 | K48: =K47/(D26*D27*I18) -> 0.04224372737 | L48: =L47/(D26*D27*I18) -> 0.02662959017 | M48: =M47/(D26*D27*I18) -> 0.01668359866 | N48: =N47/(D26*D27*I18) -> 0.01048072223 | O48: =O47/(D26*D27*I18) -> 0.00834179933
A49: Wire Size recommended | D49: =IF(AND(H51="Acceptable",H50<=O33),"Wire 12",IF(AND(I50<=O33,I51="Acceptable"),"Wire 10",IF(AND(J50<=O33,J51="Acceptable"),"Wire 8",IF(AND(K50<=O33,K51="Acceptable"),"Wire 6",IF(AND(L50<=O33,L51="Acceptable"),"Wire 4",IF(AND(M50<=O33,M51="Acceptable"),"Wire 2",IF(AND(N50<=O33,N51="Acceptable"),"Wire 0",IF(AND(O50<=O33,O51="Acceptable"),"Wire 00","None")))))))) -> Wire 4 | E49: or bigger | G49: Voltage Losses | H49: =H45*$D$27*$I$16 -> 4.2075648 | I49: 2.6469504 | J49: 1.6639488 | K49: 1.046592 | L49: 0.6597504 | M49: 0.4133376 | N49: 0.2596608 | O49: 0.2066688
G50: Percentage | H50: =((($D$27*$I$16)*H45))/($D$26*$I$14) -> 0.235059486 | I50: 0.147874324 | J50: 0.09295803352 | K50: 0.05846882682 | L50: 0.03685756425 | M50: 0.02309148603 | N50: 0.01450618994 | O50: 0.01154574302
G51: Current? | H51: =IF((I16*D27)>=20,"Unacceptable","Acceptable") -> Acceptable | I51: =IF((I16*D27)>=30,"Unaceptable","Acceptable") -> Acceptable | J51: =IF((I16*D27)>=40,"Unacceptable","Acceptable") -> Acceptable | K51: =IF((I16*D27)>=55,"Unacceptable","Acceptable") -> Acceptable | L51: =IF((I16*D27)>=70,"Unacceptable","Acceptable") -> Acceptable | M51: =IF((I16*D27)>=95,"Unacceptable","Acceptable") -> Acceptable | N51: =IF((I16*D27)>=125,"Unacceptable","Acceptable") -> Acceptable | O51: =IF((I16*D27)>=165,"Unacceptable","Acceptable") -> Acceptable

Sheet Design Spec
A1: Design Specification Summary (estimated 2012 dollar amounts)
A3: Item | B3: Description | D3: Quantity | E3: ~ | F3: Price
A4: Charge Controller | B4: ='Battery Bank'!E14 -> 12 | C4: V | D4: 1 | F4: =200*D4 -> 200
A5: PV Solar Module(s) with j/box | B5: with a chosen wattage size of | C5: ='Array Sizing'!D25 -> 65 | D5: ='Array Sizing'!I18 -> 4 | F5: =2.5*C5*D5 -> 650
A6: Fixed PV Rack System | D6: 1 | F6: =IF(D5=1,250,IF(D5=2, 300,IF(D5=3,550,IF(D5=4,800,1000))))*D6 -> 800
A7: Batteries | B7: ='Battery Bank'!E25 -> 100 | C7: A/H | D7: ='Battery Bank'!E32 -> 3 | F7: =B7*B8*D7*0.2 -> 720
B8: ='Battery Bank'!E24 -> 12 | C8: V
A9: =IF('Array Sizing'!M31="Wire 12","#12 UF wire",IF('Array Sizing'!M31="Wire 10","#10 UF wire",IF('Array Sizing'!M31="Wire 8","#8 UF wire",IF('Array Sizing'!M31="Wire 6","#6 UF wire",IF('Array Sizing'!M31="Wire 4","#4 UF wire",IF('Array Sizing'!M31="Wire 2","#2 UF wire",IF('Array Sizing'!M31="Wire 0","#0 UF wire",IF('Array Sizing'!M31="Wire 00","#00 UF wire","Wire")))))))) -> #4 UF wire | B9: AWG sized wire for PV pump | D9: ='Array Sizing'!$D$48*1.25 -> 115 | E9: ft | F9: =IF(D9<250,200,400) -> 200
A10: Solid copper ground rod | D10: 8 | E10: ft | F10: 25
A11: Fuse Breaker | B11: Minimum amperage | C11: ='Array Sizing'!H27 -> 23 | D11: 3 | F11: =15*D11 -> 45
A12: Lights | B12: 40 W (450 Lumens) | C12: =Lights!K4 -> Halogen | D12: =Lights!J4 -> 1 | F12: =ROUNDUP(IF(C12="LED",30,IF(C12="Fluorescent",15,IF(C12="Halogen",7,IF(C12="Incandescent",0.6,0))))*D12,0) -> 7
B13: 50 W (600 Lumens) | C13: =Lights!K5 -> Fluorescent | D13: =Lights!J5 -> 1 | F13: =ROUNDUP(IF(C13="LED",30,IF(C13="Fluorescent",15,IF(C13="Halogen",7,IF(C13="Incandescent",0.6,0))))*D13,0) -> 15
B14: 60 W (800 Lumens) | C14: =Lights!K6 -> Incandescent | D14: =Lights!J6 -> 0 | F14: 0
B15: 75 W (1100 Lumens) | C15: =Lights!K7 -> LED | D15: =Lights!J7 -> 1 | F15: 30
B16: 100 W (1600 Lumens) | C16: =Lights!K8 -> Incandescent | D16: =Lights!J8 -> 0 | F16: 0
B17: 150 W (2600 Lumens) | C17: =Lights!K9 -> LED | D17: =Lights!J9 -> 0 | F17: 0
A18: =TODAY() -> 2014-08-26 | B18: Grand Total of the System | E18: =SUM(F4:F17) -> 2692
A19: Federal tax credits (as of 2012) | C19: 0.3
A20: State tax credits average about 10% | C20: 0.1
A21: You may go to the Conclusion sheet for an example picture | B21: Grand Total of the System with tax credits | E21: =E18*(1-(C19+C20)) -> 1615.2
A22: For specific state tax credits visit the link: | B22: http://www.dsireusa.org/

Sheet Conclusion
A1: Simplified sketch of an example system (not your specs)
A2: Before exiting, print any sheets that you will need. Contact your county Extension agent if you have any questions (http://aces.nmsu.edu/county/).
A31: Ref: Home Power Magazine.
